Cogmind - Beta 11.1 *** ADVENTURER MODE // 2022.05.01 @ 08:12:56 Player: An Result: Destroyed by B-86 Titan with Matter Neutralizer Performance ------------- Evolutions (7) 3500 Regions Visited (11) 2200 Robots Destroyed (142) 710 Value Destroyed (5175) 5175 Prototype IDs (21) 420 Alien Tech Used (0) 0 Bonus (473) 473 TOTAL SCORE: 12478 Bonus ------- High Alert Combat Kills 199 Follower Combat Kills 274 Cogmind --------- Core Integrity 0/1300 Matter 297/300 Energy 150/150 System Corruption 7% Temperature Cool (9) Movement Treading (180) Location -3/Research Parts ------- > --- POWER (2) -------- Micro Antimatter Reactor > --- PROPULSION (6) --- Heavy Siege Treads Heavy Siege Treads > --- UTILITY (11) ----- Advanced Heat Sink Visual Processing Unit Advanced Signal Interpreter Advanced Melee Analysis Suite Advanced Target Analyzer Advanced Hacking Suite Advanced Corruption Screen Advanced Corruption Screen > --- WEAPON (2) ------- Heavy Disruptor Cannon > --- INVENTORY (5) ---- Improved Antigrav System Quantum Rifle Powered Hammer Enhanced Force Lance Enhanced Force Lance Peak State ------------ > --- POWER ------------ Antimatter Reactor Micro Antimatter Reactor > --- PROPULSION ------- Heavy Siege Treads Heavy Siege Treads Heavy Siege Treads > --- UTILITY ---------- Advanced Heat Sink Visual Processing Unit Advanced Signal Interpreter Advanced Melee Analysis Suite Advanced Target Analyzer Advanced Hacking Suite Advanced Corruption Screen Advanced Corruption Screen > --- WEAPON ----------- Heavy Disruptor Cannon > --- INVENTORY -------- Improved Antigrav System Quantum Rifle Powered Hammer Enhanced Force Lance Enhanced Force Lance [Rating: 120] Favorites ----------- Power Light Deuterium Engine Engine Light Deuterium Engine Power Core Light Nuclear Core Reactor Heavy Antimatter Reactor Propulsion VTOL Module Treads Heavy Siege Treads Leg Aluminum Leg Flight Unit VTOL Module Utility Improved Melee Analysis Suite Device Improved Sensor Array Storage Small Storage Unit Processor Improved Melee Analysis Suite Hackware System Shield Protection Powered Armor Weapon Spear Energy Gun Medium Laser Energy Cannon Heavy Disruptor Cannon Ballistic Gun Improved Heavy Machine Gun Ballistic Cannon Enhanced Gauss Cannon Impact Weapon Powered Hammer Slashing Weapon Greatsword Piercing Weapon Spear Build | -11 -10 -9 -8 -7 -6 -6 -5 -5 -5 -4 -3 ------- Run | Scr Mat Mat Mat Fac Fac Ext Fac Upp Upp Fac Res Slots Evolved 14 | . . 2 2 2 2 . 2 . . 2 2 Power 1 | . . . . . . . . . . 1 . Propulsion 4 | . . 1 1 . . . . . . . 2 Utility 9 | . . 1 1 2 2 . 2 . . 1 . Weapon . | . . . . . . . . . . . . Parts Attached 242 | 6 . 16 11 49 13 15 72 2 1 8 49 Power 37 | 1 . 1 1 10 2 2 8 . . 3 9 Engine 15 | 1 . 1 . 7 2 . 1 . . 1 2 Core 13 | . . . 1 3 . 2 7 . . . . Reactor 9 | . . . . . . . . . . 2 7 Propulsion 89 | 2 . 5 5 19 2 7 25 1 . 2 21 Treads 5 | . . . . . . 1 . . . . 4 Leg 5 | 2 . . . . . 3 . . . . . Wheel . | . . . . . . . . . . . . Hover . | . . . . . . . . . . . . Flight 79 | . . 5 5 19 2 3 25 1 . 2 17 Utility 68 | 1 . 3 2 14 5 2 27 . 1 3 10 Device 34 | . . 2 . 9 2 1 13 . 1 1 5 Storage 1 | 1 . . . . . . . . . . . Processor 21 | . . 1 1 3 2 . 10 . . . 4 Hackware 8 | . . . 1 2 1 . 3 . . 1 . Protection 4 | . . . . . . 1 1 . . 1 1 Artifact . | . . . . . . . . . . . . Weapon 48 | 2 . 7 3 6 4 4 12 1 . . 9 Energy Gun 11 | 2 . 4 2 . . . 3 . . . . Energy Cannon 4 | . . 1 . . . . . . . . 3 Ballistic Gun 3 | . . 1 . . . . 2 . . . . Ballistic Cannon 1 | . . . . . . . 1 . . . . Launcher . | . . . . . . . . . . . . Special Weapon . | . . . . . . . . . . . . Impact Weapon 5 | . . 1 . . 1 . . . . . 3 Slashing Weapon 12 | . . . 1 4 3 3 1 . . . . Piercing Weapon 12 | . . . . 2 . 1 5 1 . . 3 Special Melee Weapon . | . . . . . . . . . . . . Unidentified Prototypes 21 | . . 3 2 8 1 . 5 . . 1 1 Parts Lost 110 | . . 5 2 15 . 17 38 . . 1 32 Power 15 | . . 1 . 3 . 2 5 . . 1 3 Propulsion 52 | . . 2 2 7 . 7 18 . . . 16 Utility 28 | . . . . 2 . 6 10 . . . 10 Weapon 15 | . . 2 . 3 . 2 5 . . . 3 Highest Loss Streak 15 | . . 2 1 7 . 7 15 . . 1 12 To Critical Strikes 2 | . . 1 . . . . . . . . 1 Average Slot Usage (%) 77 | . 85 80 87 88 82 74 73 76 86 82 62 Engine 3 | . 14 10 4 4 5 2 . 5 5 4 . Core 1 | . . . 4 1 . 2 3 . . . . Flight 17 | . . 33 34 28 19 9 16 14 17 10 7 Device 6 | . . 1 . 6 6 1 5 11 15 19 6 Storage 1 | . 14 11 9 . . . . . . . . Processor 23 | . . 10 17 22 24 23 30 23 23 21 21 Hackware 10 | . . . 8 13 19 18 6 11 11 11 8 Energy Gun 1 | . 28 11 . . . . . . . . . Slashing Weapon 2 | . . . 2 6 5 5 1 . . . . Piercing Weapon 3 | . . . . 1 . . 3 7 11 10 3 Naked Turns . | . . . . . . . . . . . . Heaviest Build 47 | 14 14 12 15 17 11 15 19 10 18 31 47 Greatest Support 210 | 20 20 12 17 26 17 60 25 23 23 39 210 Greatest Overweight (x) 4 | 1 . . . 3 . 3 1 . . 4 1 Average Overweight (x) . | . . . . . . . . . . . . Largest Inventory Capacity 8 | 8 8 8 8 8 5 5 5 5 5 5 5 Average Capacity 5 | 7 8 8 8 5 5 5 5 5 5 5 5 Most Carried 8 | 2 8 8 8 8 5 5 5 5 5 5 5 Average Carried 4 | 1 5 7 7 5 1 3 4 4 5 4 3 Final Capacity 8 | 8 8 8 8 5 5 5 5 5 5 5 5 Final Carried 8 | 2 8 8 7 3 2 5 5 5 5 5 5 Class Distribution -------------------- 34% | Hacker-Sprinter 17% | Hacker-Mutant 13% | Hacker-Ninja 7% | Hacker-Scout 5% | Scavenger-Sprinter 5% | Scavenger-Scout 4% | Hacker-Gladiator 3% | Mutant 3% | Sprinter Dominant Class ---------------- Mutant | -10/Materials Sprinter | -9/Materials Hacker-Sprinter | -8/Materials Hacker-Sprinter | -7/Factory Hacker-Sprinter | -6/Factory Hacker-Gladiator | -6/Extension Hacker-Sprinter | -5/Factory Hacker-Scout | -5/Upper Caves Hacker-Scout | -5/Upper Caves Hacker-Ninja | -4/Factory Hacker-Mutant | -3/Research Resources | -11 -10 -9 -8 -7 -6 -6 -5 -5 -5 -4 -3 ----------- Run | Scr Mat Mat Mat Fac Fac Ext Fac Upp Upp Fac Res Matter Collected 2611 | 175 65 175 105 497 135 130 695 63 10 75 486 Remotely . | . . . . . . . . . . . . Salvage Created 5930 | . 101 479 406 1358 182 393 1468 22 . 225 1296 Parts 336 | . 6 42 21 75 10 19 92 1 . 13 57 Haulers Intercepted 10 | . . 1 3 5 1 . . . . . . Recyclers Shooed 1 | . . . . . . . 1 . . . . Parts Field Recycled . | . . . . . . . . . . . . Retrieved Matter . | . . . . . . . . . . . . Parts Self-Destructed . | . . . . . . . . . . . . Prevented . | . . . . . . . . . . . . Kills | -11 -10 -9 -8 -7 -6 -6 -5 -5 -5 -4 -3 ------- Run | Scr Mat Mat Mat Fac Fac Ext Fac Upp Upp Fac Res Combat Hostiles Destroyed 98 | . 4 15 6 16 1 7 25 1 . 3 20 Melee 70 | . . . 6 16 1 7 24 1 . 3 12 Guns 18 | . 4 13 . . . . 1 . . . . Cannons 1 | . . . . . . . . . . . 1 Classes Destroyed 11 | . 2 3 2 3 . 1 . . . . . Worker 4 | . . . . 1 . . 1 . . . 2 Builder 1 | . . . . . . 1 . . . . . Hauler 10 | . . 1 3 5 1 . . . . . . Recycler 3 | . . . . 1 . . 2 . . . . Operator 6 | . . . 1 2 1 . 2 . . . . Watcher 20 | . . 3 2 6 . . 7 . . 1 1 Swarmer 41 | . 3 10 2 3 . 2 16 1 . . 4 Grunt 15 | . 1 3 1 2 1 2 1 . . . 4 Sentry 15 | . . 2 1 6 . 2 2 . . 1 1 Hunter 6 | . . . 2 1 . . 1 . . . 2 Programmer 20 | . . . . 4 . . 5 . . 2 9 Thug 1 | . . . . . . 1 . . . . . Best Kill Streak 14 | . 4 14 4 3 2 3 6 1 . 2 3 Combat Bots Only 14 | . 4 14 3 3 1 3 5 1 . 2 3 Max Kills in Single Turn 2 | . 1 2 1 1 1 1 2 1 . 1 1 Gunslinging 1 | . . 1 . . . . . . . . . Exploded . | . . . . . . . . . . . . Melee 2 | . . . 1 1 1 1 2 1 . 1 1 Uniques/NPCs Destroyed . | . . . . . . . . . . . . Combat | -11 -10 -9 -8 -7 -6 -6 -5 -5 -5 -4 -3 -------- Run | Scr Mat Mat Mat Fac Fac Ext Fac Upp Upp Fac Res Damage Taken 11945 | . 94 522 352 1607 31 1299 2592 . . 409 5039 Core 3665 | . 15 196 73 601 . 293 995 . . 189 1303 Absorbed by Shields 48 | . . . . . . 48 . . . . . Reduced by Siege Mode 267 | . . . . . . . . . . . 267 Regen/Repaired (Parts) 577 | . . . . 300 189 . 46 . . 42 . Core Remaining (%) 61 | 100 94 51 86 14 . 65 . . . 83 . Volleys Fired 90 | . 15 41 . . . . 13 . . . 21 Largest 2 | . 2 2 . . . . 1 . . . 1 Hottest 110 | . 90 106 . . . . 81 . . . 110 Shots Fired 118 | . 30 55 . . . . 13 . . . 20 Gun 94 | . 30 55 . . . . 9 . . . . Cannon 24 | . . . . . . . 4 . . . 20 Launcher . | . . . . . . . . . . . . Special . | . . . . . . . . . . . . Kinetic 9 | . . . . . . . 9 . . . . Thermal 71 | . 15 52 . . . . 4 . . . . Explosive . | . . . . . . . . . . . . Electromagnetic 38 | . 15 3 . . . . . . . . 20 Robot Hit Streak 14 | . 8 14 . . . . 4 . . . 10 Robot Miss Streak 3 | . 3 2 . . . . 1 . . . 1 Penetration Max . | . . . . . . . . . . . . Secondary Targets 4 | . 2 2 . . . . . . . . . Max Gunslinging Chain 1 | . 1 1 . . . . . . . . . Shots Hit Robots 372 | . 23 47 18 69 5 12 97 1 . 14 86 Core Hits 137 | . 5 21 6 22 2 7 42 1 . 7 24 Critical Kills 3 | . . . 1 . . . . . . . 2 Critical Parts Destroyed 8 | . . . 1 . . . . . . . 7 Critical Strikes 44 | . . 3 3 7 . . 15 . . 1 15 Burn 3 | . . 3 . . . . . . . . . Corrupt 1 | . . . . . . . . . . . 1 Smash 11 | . . . 2 . . . . . . . 9 Sever 10 | . . . 1 6 . . 3 . . . . Impale 19 | . . . . 1 . . 12 . . 1 5 Melee Attacks 418 | . . 4 24 111 12 13 134 5 . 27 88 Impact 62 | . . 4 14 . . . . . . . 44 Slashing 155 | . . . 10 96 12 11 26 . . . . Piercing 201 | . . . . 15 . 2 108 5 . 27 44 Sneak Attacks 20 | . . . 3 8 1 2 3 . . . 3 Combat Hostiles 1 | . . . . . . . . . . . 1 Follow-up Attacks 10 | . . . . 1 . . 7 . . . 2 Damage Inflicted 17244 | . 314 770 1123 4680 458 791 4609 36 . 461 4002 Guns 1105 | . 290 667 . . . . 148 . . . . Cannons 664 | . . . . . . . . . . . 664 Explosions 24 | . 24 . . . . . . . . . . Melee 15447 | . . 103 1123 4680 458 789 4461 36 . 461 3336 Ramming 4 | . . . . . . 2 . . . . 2 Kinetic 101 | . . . . . . . 101 . . . . Thermal 855 | . 176 632 . . . . 47 . . . . Explosive . | . . . . . . . . . . . . Electromagnetic 837 | . 138 35 . . . . . . . . 664 Impact 2482 | . . 103 562 . . . . . . . 1817 Slashing 6788 | . . . 561 4033 458 707 1029 . . . . Piercing 6177 | . . . . 647 . 82 3432 36 . 461 1519 Highest Corruption 21 | . . . . 2 . . 3 3 3 1 21 Average Corruption 4 | . . . . 1 . . 2 3 3 1 12 Corruption Purged 15 | . . . . 1 . . . . . . 14 Corruption Blocked 2 | . . . . . . . . . . . 2 Effects 101 | . . . . 15 . . 21 7 3 . 55 Message Errors 21 | . . . . 3 . . 1 1 2 . 14 Matter Fused 30 | . . . . 5 . . 9 3 1 . 12 Heat Flow Errors 9 | . . . . . . . 1 2 . . 6 Energy Discharges 14 | . . . . 3 . . 7 . . . 4 Parts Rejected 3 | . . . . 1 . . . . . . 2 Data Loss (minor) 10 | . . . . 1 . . 3 . . . 6 Data Loss (major) 5 | . . . . 1 . . . 1 . . 3 Alerts 4 | . . . . 1 . . . . . . 3 Misdirections 4 | . . . . . . . . . . . 4 Weapon Failures 1 | . . . . . . . . . . . 1 Overload Shots . | . . . . . . . . . . . . Overflow Damage 2565 | . . 1 279 840 69 85 473 . . 10 808 Projectiles . | . . . . . . . . . . . . Explosions . | . . . . . . . . . . . . Melee 2565 | . . 1 279 840 69 85 473 . . 10 808 Knockbacks 6 | . . . 2 . . . . . . . 4 Impact 6 | . . . 2 . . . . . . . 4 Kinetic . | . . . . . . . . . . . . Secondary . | . . . . . . . . . . . . Self-Inflicted Damage . | . . . . . . . . . . . . Shots . | . . . . . . . . . . . . Rammed 1 | . . . . . . . . . . . 1 Targets Rammed 2 | . . . . . . 1 . . . . 1 Kicked 1 | . . . . . . 1 . . . . . Crushed . | . . . . . . . . . . . . Highest Temperature 469 | . 200 469 12 146 . . 196 194 . . 450 Average Temperature 128 | . 87 141 4 66 . . 49 90 . . 161 Received Heat Transfer 2057 | . 36 219 90 294 18 242 397 . . 45 716 Effects 8 | . . 4 . . . . . . . . 4 Shutdowns 4 | . . 1 . . . . . . . . 3 Energy Bleed 4 | . . 3 . . . . . . . . 1 Siege Activations 1 | . . . . . . . . . . . 1 Total Turns 35 | . . . . . . . . . . . 35 Longest Duration 35 | . . . . . . . . . . . 35 Robots Corrupted 5 | . . . . . . . . . . . 5 Combat Hostiles 5 | . . . . . . . . . . . 5 Parts Fried 19 | . . 1 6 . . . . . . . 12 Impact Corruptions 34 | . . 1 9 . . . . . . . 24 Robots Melted 1 | . . 1 . . . . . . . . . Combat Hostiles 1 | . . 1 . . . . . . . . . Parts Melted 5 | . 1 3 . . . 1 . . . . . Heat Transferred 2307 | . 494 1739 . . . . 74 . . . . Parts Sabotaged . | . . . . . . . . . . . . Parts Stolen . | . . . . . . . . . . . . Parts Stripped . | . . . . . . . . . . . . Power Chain Reactions 1 | . 1 . . . . . . . . . . Missiles Intercepted . | . . . . . . . . . . . . Alert | -11 -10 -9 -8 -7 -6 -6 -5 -5 -5 -4 -3 ------- Run | Scr Mat Mat Mat Fac Fac Ext Fac Upp Upp Fac Res Peak Influence 771 | . 128 771 528 259 154 266 606 . . 174 503 Initial 175 | . . 45 175 88 80 18 20 . . 97 56 Average 178 | . 32 473 316 91 122 95 207 . . 79 258 Maximum Alert Level 3 | . . 3 2 1 . 1 2 . . . 2 Low Security (%) 63 | 100 100 20 18 90 100 91 41 . . 100 36 Level 1 27 | . . 10 56 9 . 8 51 . . . 51 Level 2 7 | . . 47 25 . . . 7 . . . 12 Level 3 1 | . . 21 . . . . . . . . . Level 4 . | . . . . . . . . . . . . Level 5 . | . . . . . . . . . . . . High Security . | . . . . . . . . . . . . Max Security . | . . . . . . . . . . . . Squads Dispatched 25 | . 1 . 4 10 2 . 3 . . 1 4 Investigation 3 | . 1 . 1 1 . . . . . . . Extermination 10 | . . . . 2 . . 3 . . 1 4 Reinforcement 10 | . . . 2 6 2 . . . . . . Assault 1 | . . . . 1 . . . . . . . Garrison 1 | . . . 1 . . . . . . . . Intercept . | . . . . . . . . . . . . Searches Triggered 3 | . . 1 . . . . 2 . . . . Construction Impeded . | . . . . . . . . . . . . Haulers Reinforced 4 | . . . . 3 1 . . . . . . Active Scanning Responses . | . . . . . . . . . . . . Cargo Convoy Interrupts 1 | . . . . 1 . . . . . . . Stealth | -11 -10 -9 -8 -7 -6 -6 -5 -5 -5 -4 -3 --------- Run | Scr Mat Mat Mat Fac Fac Ext Fac Upp Upp Fac Res Distress Signals 11 | . . 1 1 1 . 3 2 . . . 3 Communications Jammed 2 | . . . . . . . 2 . . . . Distress Signals 2 | . . . . . . . 2 . . . . Times Spotted 335 | . 4 32 17 66 6 21 114 4 . 7 64 Peak Tracking Total 14 | . 3 14 5 14 5 5 13 3 . 2 9 Tactical Retreats 57 | . . 6 1 8 1 3 23 3 . 1 11 Traps | -11 -10 -9 -8 -7 -6 -6 -5 -5 -5 -4 -3 ------- Run | Scr Mat Mat Mat Fac Fac Ext Fac Upp Upp Fac Res Traps Triggered 21 | . 1 . . 7 . 6 5 . . . 2 Indirectly . | . . . . . . . . . . . . Trap Hack Attempts . | . . . . . . . . . . . . Triggered . | . . . . . . . . . . . . Disarmed . | . . . . . . . . . . . . Reprogrammed . | . . . . . . . . . . . . Reused . | . . . . . . . . . . . . Traps Extracted . | . . . . . . . . . . . . Installed . | . . . . . . . . . . . . Triggered . | . . . . . . . . . . . . Machines | -11 -10 -9 -8 -7 -6 -6 -5 -5 -5 -4 -3 ---------- Run | Scr Mat Mat Mat Fac Fac Ext Fac Upp Upp Fac Res Machines Disabled 2 | . 1 . . . . . . . . . 1 Max in Single Turn 1 | . 1 . . . . . . . . . 1 Garrison Access 3 | . . . . 1 . . 1 . . . 1 Machines Sabotaged . | . . . . . . . . . . . . Garrisons Compromised . | . . . . . . . . . . . . Overloaded Fab Kills . | . . . . . . . . . . . . Hacking | -11 -10 -9 -8 -7 -6 -6 -5 -5 -5 -4 -3 --------- Run | Scr Mat Mat Mat Fac Fac Ext Fac Upp Upp Fac Res Machines Accessed 61 | . 2 5 2 16 4 4 20 . . 4 4 Terminals 41 | . 2 5 2 10 1 4 13 . . 2 2 Fabricators 5 | . . . . 2 1 . 2 . . . . Repair Stations 7 | . . . . 3 1 . 2 . . 1 . Recycling Units 1 | . . . . . . . 1 . . . . Scanalyzers 1 | . . . . . . . 1 . . . . Garrison Access 6 | . . . . 1 1 . 1 . . 1 2 Total Hacks 184 | . 4 16 8 54 15 10 57 . . 15 5 Successful 118 | . 3 10 5 37 11 8 27 . . 12 5 Failed 66 | . 1 6 3 17 4 2 30 . . 3 . Catastrophic 4 | . 1 . . 1 . . 2 . . . . Database Lockouts . | . . . . . . . . . . . . Manual 123 | . 4 19 8 30 1 7 41 . . 10 3 Terminals 116 | . 4 16 8 27 1 10 39 . . 8 3 Fabricators 11 | . . . . 3 3 . 5 . . . . Repair Stations 41 | . . . . 21 10 . 5 . . 5 . Recycling Units 3 | . . . . . . . 3 . . . . Scanalyzers 2 | . . . . . . . 2 . . . . Garrison Access 11 | . . . . 3 1 . 3 . . 2 2 Terminal Hacks 36 | . 2 6 4 8 1 5 6 . . 3 1 Record 1 | . . . . . . . . . . . 1 Robot Analysis 8 | . . 4 1 2 . 1 . . . . . Open Door 2 | . . . . . . 2 . . . . . Open DSF 2 | . . . . . 1 . 1 . . . . Level Access Points 3 | . 1 . . 1 . . . . . 1 . Branch Access Points 3 | . . . . 1 . . 1 . . 1 . Terminal Index 8 | . 1 1 1 1 . 2 1 . . 1 . Repair Station Index 1 | . . . . 1 . . . . . . . Alert Level 2 | . . . . 1 . . 1 . . . . Unreport Threat 5 | . . . 2 1 . . 2 . . . . Zone Layout 1 | . . 1 . . . . . . . . . Fabricator Hacks 4 | . . . . 2 1 . 1 . . . . Network Status 4 | . . . . 2 1 . 1 . . . . Repair Station Hacks 35 | . . . . 17 8 . 5 . . 5 . Scan Component 19 | . . . . 9 4 . 3 . . 3 . Repair 16 | . . . . 8 4 . 2 . . 2 . Recycling Unit Hacks . | . . . . . . . . . . . . Scanalyzer 2 | . . . . . . . 2 . . . . Insert Component 1 | . . . . . . . 1 . . . . Analyze 1 | . . . . . . . 1 . . . . Garrison Access Hacks 2 | . . . . . . . 1 . . . 1 Seal Access 2 | . . . . . . . 1 . . . 1 Unauthorized Hacks 39 | . 1 4 1 10 1 3 12 . . 4 3 Terminals 31 | . 1 4 1 8 . 3 10 . . 2 2 Assimilate 3 | . . . . 1 . . 2 . . . . Botnet 26 | . 1 4 1 7 . 2 7 . . 2 2 Operators 2 | . . . . . . 1 1 . . . . Fabricators 2 | . . . . 1 . . 1 . . . . Report 2 | . . . . 1 . . 1 . . . . Repair Stations . | . . . . . . . . . . . . Recycling Units . | . . . . . . . . . . . . Scanalyzers . | . . . . . . . . . . . . Garrison Access 6 | . . . . 1 1 . 1 . . 2 1 Broadcast 1 | . . . . . . . . . . 1 . Watchers 5 | . . . . 1 1 . 1 . . 1 1 Data Cores Recovered 3 | . . . . 2 . . 1 . . . . Used 1 | . . . . 1 . . . . . . . Hacking Detections 45 | . 2 5 2 13 2 2 16 . . 2 1 Full Trace Events 2 | . . . 1 1 . . . . . . . Feedback Events . | . . . . . . . . . . . . Feedback Blocked . | . . . . . . . . . . . . Robot Schematics Acquired . | . . . . . . . . . . . . Robots Built . | . . . . . . . . . . . . Authchips . | . . . . . . . . . . . . Time . | . . . . . . . . . . . . Total Robot Build Rating . | . . . . . . . . . . . . Part Schematics Acquired 1 | . . . . . . . 1 . . . . Parts Built . | . . . . . . . . . . . . Authchips . | . . . . . . . . . . . . Time . | . . . . . . . . . . . . Total Part Build Rating . | . . . . . . . . . . . . Parts Repaired 15 | . . . . 8 4 . 2 . . 1 . Time 523 | . . . . 274 101 . 66 . . 82 . Parts Recycled . | . . . . . . . . . . . . Recycled Matter . | . . . . . . . . . . . . Retrieved Matter . | . . . . . . . . . . . . Retrieved Components . | . . . . . . . . . . . . Parts Scanalyzed 1 | . . . . . . . 1 . . . . Part Schematics Acquired 1 | . . . . . . . 1 . . . . Parts Damaged . | . . . . . . . . . . . . Bothacking | -11 -10 -9 -8 -7 -6 -6 -5 -5 -5 -4 -3 ------------ Run | Scr Mat Mat Mat Fac Fac Ext Fac Upp Upp Fac Res Used RIF Installer . | . . . . . . . . . . . . Robots Hacked . | . . . . . . . . . . . . Non-combat . | . . . . . . . . . . . . Combat . | . . . . . . . . . . . . Robot Hacks Applied . | . . . . . . . . . . . . Relay Couplers Released 5 | . . . . 2 . . 3 . . . . Machine Destruction 2 | . . . . 2 . . . . . . . Programmers 3 | . . . . . . . 3 . . . . Fabnet Peak Effective % . | . . . . . . . . . . . . Robots Rewired 10 | . . . . . . 10 . . . . . Allies Hacked . | . . . . . . . . . . . . Hacks Repelled . | . . . . . . . . . . . . Allies | -11 -10 -9 -8 -7 -6 -6 -5 -5 -5 -4 -3 -------- Run | Scr Mat Mat Mat Fac Fac Ext Fac Upp Upp Fac Res Total Allies 14 | . . . . 1 . 11 2 . . . . Largest Group 8 | . . . . 1 . 8 1 . . . . Highest-Rated Group 231 | . . . . 26 . 231 26 . . . . Highest-Rated Ally 39 | . . . . 26 . 39 26 . . . . Total Orders . | . . . . . . . . . . . . Ally Attacks 60 | . . . . . . 60 . . . . . Total Damage 1022 | . . . . . . 1022 . . . . . Kills 9 | . . . . . . 9 . . . . . Allies Corrupted . | . . . . . . . . . . . . Allies Melted . | . . . . . . . . . . . . Intel | -11 -10 -9 -8 -7 -6 -6 -5 -5 -5 -4 -3 ------- Run | Scr Mat Mat Mat Fac Fac Ext Fac Upp Upp Fac Res Robot Analysis Total 8 | . . 4 1 2 . 1 . . . . . Derelict Logs Recovered 1 | . . . . . . . . . 1 . . Drone Launches . | . . . . . . . . . . . . Drone Recoveries . | . . . . . . . . . . . . Exploration | -11 -10 -9 -8 -7 -6 -6 -5 -5 -5 -4 -3 ------------- Run | Scr Mat Mat Mat Fac Fac Ext Fac Upp Upp Fac Res Turns Passed 9230 | 65 179 470 254 2143 427 569 2105 296 218 783 1721 Spaces Moved 12756 | 38 107 830 524 2975 671 545 3935 620 591 565 1355 Core 150 | 4 . . . 24 . 17 1 . . 48 56 Treads 208 | . . . . . . 4 . . . . 204 Legs 298 | 34 107 . . . . 157 . . . . . Wheels . | . . . . . . . . . . . . Hover . | . . . . . . . . . . . . Flight 12100 | . . 830 524 2951 671 367 3934 620 591 517 1095 Fastest Speed 21 | 50 120 29 28 21 32 29 26 29 29 29 31 Average Speed 36 | 144 120 30 28 29 32 66 30 30 29 50 58 Slowest Speed 250 | 190 120 32 32 200 32 205 104 32 29 250 180 Overloaded Moves 64 | . . . . 64 . . . . . . . Propulsion Burnouts . | . . . . . . . . . . . . Robots Hopped 84 | . . 34 . 9 1 10 18 . . 2 10 Cave-ins Triggered . | . . . . . . . . . . . . Exploration Rate (%) 41 | 3 25 73 46 54 11 40 70 57 70 13 31 Regions Visited 11 Branch Regions 3 Pre-discovered Areas . | . . . . . . . . . . . . Known Exits Taken 8 | . 1 . . 1 1 1 1 1 1 1 . Unknown Exits Taken 3 | 1 . 1 1 . . . . . . . . Scrap Searched 3 | . . . . . . . . 2 1 . . Spaces Dug 111 | . . 1 4 37 6 . 36 4 . 9 14 Terrain Destroyed 113 | . 2 1 4 37 6 . 36 4 . 9 14 Melee 108 | . . 1 4 37 6 . 33 4 . 9 14 Projectile 3 | . . . . . . . 3 . . . . AOE 2 | . 2 . . . . . . . . . . Terrain Rammed . | . . . . . . . . . . . . Walls Destroyed . | . . . . . . . . . . . . Machines Disabled . | . . . . . . . . . . . . Actions | -11 -10 -9 -8 -7 -6 -6 -5 -5 -5 -4 -3 --------- Run | Scr Mat Mat Mat Fac Fac Ext Fac Upp Upp Fac Res Total 16344 | 45 127 953 584 4018 855 714 4576 718 636 1023 2095 Wait 2560 | . . 75 11 799 155 30 371 90 45 422 562 Move 12594 | 37 106 770 523 2956 668 528 3899 619 590 560 1338 Hop 67 | . . 25 . 9 1 6 17 . . 2 7 Pick Up 86 | 2 6 6 5 25 1 2 19 1 . 2 17 Fast Attach 162 | 6 . 10 5 29 10 13 54 2 1 5 27 Attach 72 | . . 7 4 15 3 2 16 . . 3 22 Detach 41 | . . 5 1 8 4 4 11 . . 1 7 Swap 11 | . . . 2 6 . . 2 . . . 1 Drop 96 | . . 10 9 36 1 2 22 1 . 5 10 Fire 90 | . 15 41 . . . . 13 . . . 21 Melee 392 | . . 4 24 109 12 13 120 5 . 23 82 Ram . | . . . . . . . . . . . . Kick 1 | . . . . . . 1 . . . . . Crush 1 | . . . . . . . . . . . 1 Escape Stasis 133 | . . . . 26 . 75 32 . . . . Rewire 38 | . . . . . . 38 . . . . . Trap . | . . . . . . . . . . . . Miscellaneous . | . . . . . . . . . . . . Route ------- -11/Scrapyard -10/Materials (discovered 3 exits: *Mat x3) -9/Materials (discovered 3 exits: *Mat x2 / [*Min]) -8/Materials (discovered 2 exits: *Fac x2) -7/Factory (discovered 6 exits: *Fac x4 / *Low x2) -6/Factory -6/Extension -5/Factory (discovered 4 exits: *Fac x2 / *Upp x2) -5/Upper Caves -5/Upper Caves -4/Factory (discovered 6 exits: *Res x4 / *Upp x2) -3/Research History --------- Turn | Location | Event 42 | -11/Scrapyard | Discovered new exit (range 15) 66 | -11/Scrapyard | Entered Materials 116 | -10/Materials | Identified exit to Materials 245 | -10/Materials | Entered another Materials area 245 | -9/Materials | Evolved 2 slots: Propulsion x1, Utility x1 315 | -9/Materials | Discovered new exit (range 16) 456 | -9/Materials | Destroyed 14 combat bots 600 | -9/Materials | Discovered new exit (range 8) 645 | -9/Materials | Search patrols dispatched 708 | -9/Materials | Discovered new exit (range 15) 715 | -9/Materials | Entered another Materials area 715 | -8/Materials | Evolved 2 slots: Propulsion x1, Utility x1 891 | -8/Materials | Discovered new exit (range 8) 944 | -8/Materials | Garrison activated, responded to threat 966 | -8/Materials | Discovered new exit (range 7) 969 | -8/Materials | Entered Factory 969 | -7/Factory | Evolved 2 slots: Utility x2 1016 | -7/Factory | Build established: Hacker-Sprinter 1261 | -7/Factory | Repaired Cesium-ion Thruster 1712 | -7/Factory | Discovered new exit (range 13) 1841 | -7/Factory | Identified exit to Factory 1891 | -7/Factory | Repaired Greatsword 1942 | -7/Factory | Repaired Nuclear Pulse Thruster 1984 | -7/Factory | Repaired Imp. Sensor Array 2017 | -7/Factory | Cargo convoy interrupted 2074 | -7/Factory | Lost 7 parts (1p4n1u1w) 2175 | -7/Factory | Repaired Greatsword? 2354 | -7/Factory | Core integrity fell below 50% 2748 | -7/Factory | Repaired Nuclear Pulse Thruster 2784 | -7/Factory | Repaired Cld. Deuterium Engine 2805 | -7/Factory | Repaired Imp. Sensor Array 2913 | -7/Factory | Identified exit to Lower Caves 3101 | -7/Factory | Core integrity fell below 20% 3112 | -7/Factory | Entered another Factory area 3112 | -6/Factory | Evolved 2 slots: Utility x2 3254 | -6/Factory | Repaired Lgt. Deuterium Engine 3276 | -6/Factory | Repaired Greatsword 3303 | -6/Factory | Repaired Nuclear Pulse Thruster 3339 | -6/Factory | Repaired Cld. VTOL Module 3353 | -6/Factory | Discovered new exit (range 6) 3354 | -6/Factory | Identified exit to Extension 3539 | -6/Factory | Entered Extension 3793 | -6/Extension | Rescued a captive Derelict 3943 | -6/Extension | Spotted B-75 Beast 3949 | -6/Extension | Spotted B-75 Beast 4020 | -6/Extension | Lost 5 parts (1p1n2u1w) 4107 | -6/Extension | Discovered new exit (range 3) 4108 | -6/Extension | Identified exit to Factory 4108 | -6/Extension | Entered Factory 4108 | -5/Factory | Evolved 2 slots: Utility x2 4137 | -5/Factory | Lost 7 parts (1p4n1u1w) 4146 | -5/Factory | Identified exit to DSF 4288 | -5/Factory | Lost 5 parts (1p3n1w) 4427 | -5/Factory | Identified exit to Upper Caves 4544 | -5/Factory | Repaired Field Propulsion Drive 4585 | -5/Factory | Found Powered Armor 4636 | -5/Factory | Discovered new exit (range 5) 4638 | -5/Factory | Identified exit to Factory 4934 | -5/Factory | Discovered exit to Factory (range 14) 5008 | -5/Factory | Search patrols dispatched 5031 | -5/Factory | Core integrity fell below 50% 5091 | -5/Factory | Lost 15 parts (2p6n5u2w) 5437 | -5/Factory | Spotted B-75 Beast 5655 | -5/Factory | Repaired Imp. Sensor Array 5859 | -5/Factory | Core integrity fell below 20% 5944 | -5/Factory | Lost 3 parts (1n1u1w) 6208 | -5/Factory | Search patrols dispatched 6213 | -5/Factory | Entered Upper Caves 6447 | -5/Upper Caves | Build established: Hacker-Scout 6501 | -5/Upper Caves | Discovered new exit (range 8) 6502 | -5/Upper Caves | Identified exit to Upper Caves 6509 | -5/Upper Caves | Entered another Upper Caves area 6621 | -5/Upper Caves | Discovered exit to Factory (range 15) 6727 | -5/Upper Caves | Entered Factory 6727 | -4/Factory | Evolved 2 slots: Power x1, Utility x1 6728 | -4/Factory | Identified exit to Upper Caves 6795 | -4/Factory | Spotted B-86 Titan 6838 | -4/Factory | Discovered new exit (range 17) 7024 | -4/Factory | Build established: Hacker-Ninja 7269 | -4/Factory | Identified exit to Research 7333 | -4/Factory | Repaired Lgt. Deuterium Engine 7510 | -4/Factory | Entered Research 7510 | -3/Research | Evolved 2 slots: Propulsion x2 8105 | -3/Research | System corruption reached 10% 8133 | -3/Research | Lost 7 parts (1p2n3u1w) 8211 | -3/Research | Lost 4 parts (1p2n1w) 8325 | -3/Research | Spotted B-86 Titan 8441 | -3/Research | Spotted B-86 Titan 8458 | -3/Research | Core integrity fell below 50% 8511 | -3/Research | Found Enh. Force Lance 8514 | -3/Research | Found Enh. Force Lance 8517 | -3/Research | Lost 12 parts (7n5u) 8652 | -3/Research | Core integrity fell below 20% 8712 | -3/Research | Build established: Hacker-Mutant 8768 | -3/Research | Lost 3 parts (1p1n1w) 9231 | -3/Research | Destroyed by B-86 Titan with Matter Neutralizer Last Messages --------------- 09092_ Dropped Enh. Force Lance. 09095_ Acquired Enh. Force Lance. 09098_ Acquired Powered Hammer. 09111_ Acquired 16 matter. 09115_ System corrupted: Matter fused (-9). 09115_ Acquired 9 matter. 09139_ Dropped Imp. Ion Engine. 09141_ Acquired Enh. Force Lance. 09153_ Acquired 10 matter. 09168_ System corrupted: Heat flow error (+184). 09176_ Slammed into U-05 Engineer. 09205_ Acquired Adv. Corruption Screen. 09206_ UQCO5NNF|YOWZTIZLH=MNUBTP